{"text_format":"2","workbook":"xlsx","n_sheets":29,"sheets":["Portada","Balance de Comprobación","Cambios Act. Netos Disponibles","Act. Netos Dispon. Beneficios","Nota 1","Nota 2","Nota 3","Nota 4","Nota 5","Nota 6","Nota 7","Nota 8","Nota 9","Nota 10","Nota 11","Nota 12","Nota 13","Nota 14","Nota 15","Nota 16","Nota 17","Nota 18","Nota 19","Nota 20","Nota 21","Nota 22","Nota 23","Nota 24","Nota 25"],"not_rendered":{"charts":0,"images":2,"macros":0,"external_links":0,"defined_names":31,"comments":0,"pivot_tables":0},"unopened":[],"bounds":{"document_bytes":16777216,"sheet_cells":100000,"run_cost":"one","rows_first":2000,"rows_last":500,"rows_between":2000,"halvings":0,"cell_chars":16384,"cell_head_chars":4096},"cells_cut":0,"cells_raw":0,"read":"whole","date_system":"1900"}

{"sheet":"Portada","index":0,"n_rows":0,"n_cols":0,"rows_kept":0,"cut":false,"hidden":false,"merged":[]}

{"sheet":"Balance de Comprobación","index":1,"n_rows":71,"n_cols":8,"rows_kept":71,"cut":false,"hidden":false,"merged":[[63,3,63,5],[48,2,48,3],[1,2,1,7],[3,2,3,7],[5,2,5,7],[61,3,62,5]]}
[]
[null,null,"Fondo de Jubilaciones y Pensiones del Poder Judicial"]
[]
[null,null,"Balance de Comprobación"]
[]
[null,null,"Al 31 de Diciembre 2019"]
[null," "]
[]
[null,null,"ACTIVO"]
[null,null,"Cuentas Corrientes Y De Ahorro "]
[null,null,"Inversiones En Valores De Emisores Nacionales",null,null,5957124059.3900003]
[null,null,"Cuentas Por Cobrar",null,null,556686604591.14001]
[null,null,"Productos Por Cobrar Sobre Inversiones",null,null,1045244311.61]
[null,null,"Préstamos a Afiliados",null,null,9239702917.5599995]
[null,null,"Aportes Por Cobrar A Los Trabajadores",null,null,0]
[null,null,"Aportes Por Cobrar Al Patrono",null,null,6384865284.6800003]
[null,null,"Aportes Por Cobrar Al Estado",null,null,4667193745.4888]
[null,null,"Otros Aportes Por Cobrar",null,null,401687424.43000001]
[null,null,"Mobiliario Y Equipo",null,null,211735284.06999999]
[null,null,"Equipo De Cómputo"]
[null,null,"(Depreciación Acumulada)"]
[null,null,"Costo de Programas Informáticos-Software",null,null,7618670]
[null,null,"(Amortización Programas Informáticos)",null,null,-7618670]
[null,null,"GASTOS"]
[null,null,"Pérdidas por Negociación de Instrumentos Financieros",null,null,0]
[null,null,"Pérdidas Por Fluctuación Cambiaria",null,null,1133866051.02]
[null,null,"Pérdidas por Variaciones en la Unidad de Referencia",null,null,31291906.600000001]
[null,null,"Gastos Generales",null,null,590729080.95000005]
[null,null,"PASIVO"]
[null,null,"Retenciones A Pensionados",{"$nulls":4},931509437.23000002]
[null,null,"Obligaciones Por Liquidar Empleados",{"$nulls":4},4165718.77]
[null,null,"Obligaciones Transitorias por Liquidar",{"$nulls":4},2907741466.0999999]
[null,null,"Retención Por Servicios Recibidos"]
[null,null,"Cotización Seguro De Enfermedad Y Maternidad",{"$nulls":4},590541733.49000001]
[null,null,"Provisión Para Pensiones En Curso De Pago ",{"$nulls":4},574189847647.98999]
[null,null,"PATRIMONIO"]
[null,null,"Aportaciones recibidas ",{"$nulls":4},1432934799.03]
[null,null,"INGRESOS"]
[null,null,"Productos Sobre Inversiones De Emisores Nacionales",{"$nulls":4},3624853514.9200001]
[null,null,"Intereses Sobre Saldos En Cuentas Bancarias",{"$nulls":4},34956227.329999998]
[null,null,"Por Negociación de Instrumentos Financieros",{"$nulls":4},0]
[null,null,"Ganancias por Fluctuación Cambiaria",{"$nulls":4},2484917977.2800002]
[null,null,"Ganancias por Variaciones en la Unidad de Referencia",{"$nulls":4},148515570.34]
[null,null,"Ingresos sobre Préstamos de Afiliados",{"$nulls":4},0]
[null,null,"Otros Ingresos",{"$nulls":4},60564.46]
[]
[]
[]
[null,null,"Sumas Iguales",null,null,{"$f":"SUM(F10:F28)","v":586350044656.93884},null,{"$f":"SUM(H30:H45)","v":586350044656.93994}]
[]
[]
[]
[]
[]
[null,null,"             Lic. Luis Guillermo Vásquez Ureña ",null,null,"             MBA. María Antonieta Herrera Charraun"]
[null,null,"               Jefe Subproceso Contable ",null,null,"        Jefa Proceso Presupuestario Contable "]
[]
[]
[]
[]
[]
[null,null,null,"MBA. Floribel Campos Solano"]
[]
[null,null,null,"Jefa a.i. Macroproceso Financiero Contable"]
[]
[null,null,"Realizado por:"]
[null,null,"Licda. Yesenia Flores Chacón"]
[null,null,"Coordinadora de Unidad 1 a.i."]
[]
[]
[null,null,"Observación: Enlace al Manual de Políticas Contables."]

{"sheet":"Cambios Act. Netos Disponibles","index":2,"n_rows":81,"n_cols":9,"rows_kept":81,"cut":false,"hidden":false,"merged":[[68,2,69,4],[70,2,70,4]]}
[null,"Fondo de Jubilaciones y Pensiones"]
[null,"Estado de Cambios en los Activos Netos Disponibles"]
[null,"Por el mes terminado al 31/12/2019"]
[null,"(En colones sin céntimos)"]
[]
[]
[null,null,null,"SALDO MENSUAL",null,null,"SALDO ACUMULADO"]
[null,null,"NOTAS "]
[null,"SALDO INICIAL",null,null,1515754202.1399975,"(1)",null,4387562556.5399952,"(2)"]
[]
[null,"INGRESOS",null,null,{"$f":"D13+D21","v":6293303854.329999},null,null,{"$f":"G13+G21","v":61277045889.590004}]
[]
[null,"INGRESOS FINANCIEROS",null,{"$f":"SUM(D14:D19)","v":6293243289.8699989},null,null,{"$f":"SUM(G14:G19)","v":61197907209.020004}]
[null,"Productos sobre Inversiones de Emisores Nacionales","Nota 1",{"$f":"+'Nota 1'!H24","v":3624853514.9199996},null,null,{"$f":"+'Nota 1'!H37","v":41762955537.07}]
[null,"Intereses sobre Saldos en Cuentas Corrientes","Nota 2",{"$f":"+'Nota 2'!G21","v":34956227.330000006},null,null,{"$f":"+'Nota 2'!G36","v":305719012.75}]
[null,"Por negociación de instrumentos financieros","Nota 3",0,null,null,27092481.010000002]
[null,"Ganancias por Fluctuación Cambiaria","Nota 4",{"$f":"+'Nota 4'!D17","v":2484917977.2799997},null,null,{"$f":"+'Nota 4'!F17","v":16682561382.419998}]
[null,"Ganancias por Variaciones en la Unidad de Referencia","Nota 5",{"$f":"+'Nota 5'!D15","v":148515570.34},null,null,{"$f":"+'Nota 5'!F15","v":2419529371.4000001}]
[null,"Ingresos sobre Préstamos a Afiliados y Pensionados ","Nota 6",{"$f":"+'Nota 6'!J13","v":0},null,null,{"$f":"+'Nota 6'!L13","v":49424.37}]
[]
[null,"OTROS INGRESOS",null,60564.46,null,null,79138680.569999993]
[]
[null,"PLAN DE CONTRIBUCIONES","Nota 7",null,{"$f":"SUM(D26:D29)","v":7883442337.1100006},null,null,{"$f":"SUM(G26:G29)","v":92740024509.990005}]
[]
[null,"RESERVAS EN FORMACION"]
[null,"De los trabajadores",null,{"$f":"+'Nota 7'!F14","v":3250357069.0100002},null,null,{"$f":"+'Nota 7'!H14","v":38034051833.019997}]
[null,"Del Patrono",null,{"$f":"+'Nota 7'!F15","v":3394059615.6399999},null,null,{"$f":"+'Nota 7'!H15","v":40120250994.139999}]
[null,"Del Estado",null,{"$f":"+'Nota 7'!F16","v":292728858.01999998},null,null,{"$f":"+'Nota 7'!H16","v":3582108977.8600001}]
[null,"De los Pensionados",null,{"$f":"+'Nota 7'!F17+'Nota 7'!F18","v":946296794.44000006},null,null,{"$f":"+'Nota 7'!H17+'Nota 7'!H18","v":11003612704.969999}]
[null,"Rendimientos Acumulados",null,0]
[]
[null,"UTILIDAD ( PERDIDA DEL EJERCICIO )",null,0]
[]
[null,"TOTAL ADICIONES",null,null,{"$f":"E11+E23","v":14176746191.439999},null,null,{"$f":"H11+H23","v":154017070399.58002}]
[]
[null,"SALIDA DE RECURSOS",null,null,{"$f":"D37","v":7966261740.3699999},null,null,{"$f":"G37","v":123842230249.2}]
[null,"Por Nuevos Pensionados","Nota 8",{"$f":"+'Nota 8'!D16","v":7966261740.3699999},null,null,{"$f":"+'Nota 8'!F16","v":123842230249.2}]
[]
[null,"GASTOS",null,null,{"$f":"D41+D47","v":1755887038.5700002},null,null,{"$f":"G41+G47","v":28592051092.279999}]
[]
[null,"GASTOS FINANCIEROS",null,{"$f":"D43+D44+D45","v":1165157957.6200001},null,null,{"$f":"SUM(G43:G45)","v":21795534966.439999}]
[null,"Pérdida por Negociación de Inst. Financ.",null,0,null,null,0]
[null,"Pérdida por Negociación de Instrumentos Financieros","Nota 9",{"$f":"+'Nota 9'!D11","v":0},null,null,{"$f":"+'Nota 9'!F11","v":396736.05}]
[null,"Pérdida por Fluctuación Cambiaria","Nota 10",{"$f":"+'Nota 10'!D16","v":1133866051.0200002},null,null,{"$f":"+'Nota 10'!F16","v":21276145790.130001}]
[null,"Pérdida por Variaciones en la Unidad de Referencia","Nota 11",{"$f":"+'Nota 11'!D15","v":31291906.599999998},null,null,{"$f":"+'Nota 11'!F15","v":518992440.26000005}]
[]
[null,"GASTOS GENERALES","Nota 12",{"$f":"+'Nota 12'!D16","v":590729080.94999993},null,null,{"$f":"+'Nota 12'!F16","v":6796516125.8399992}]
[]
[null,"TOTAL DE DEDUCCIONES",null,null,{"$f":"E36+E39","v":9722148778.9400005},null,null,{"$f":"H36+H39","v":152434281341.47998}]
[]
[null,"ACTIVOS NETOS DISPONIBLES PARA BENEFICIOS"]
[null,"FUTUROS AL FINAL DEL PERIODO (3)",null,null,{"$f":"E9+E34-E49","v":5970351614.6399956},null,null,{"$f":"H9+H34-H49","v":5970351614.6400452}]
[]
[]
[null,"Observaciones: "]
[null,"(1) Saldo inicial mensual: Corresponde al total de activos disponibles para beneficios futuros al final del mes de noviembre 2019."]
[null,"(2) Saldo acumulado: Pertenece al total de activos disponibles de beneficios futuros al final del año anterior (Diciembre 2018)."]
[null,"(3) Activos Netos Disponibles para Beneficios Futuros al Final del Periodo: Corresponde a la suma del saldo inicial mas el total de adiciones, menos el total de deducciones."]
[]
[]
[]
[null,"             Lic. Luis Guillermo Vásquez Ureña ",null,null,"             MBA. María Antonieta Herrera Charraun"]
[null,"               Jefe Subproceso Contable ",null,null,"         Jefa Proceso Presupuestario Contable "]
[]
[]
[]
[]
[]
[null,null,"MBA. Floribel Campos Solano"]
[]
[null,null,"Jefa a.i. Macroproceso Financiero Contable"]
[]
[]
[]
[null,"Realizado por:"]
[null,"Licda. Yesenia Flores Chacón"]
[null,"Coordinadora de Unidad 1 a.i."]
[]
[]
[]
[null,"Observación: Enlace al Manual de Políticas Contables."]

{"sheet":"Act. Netos Dispon. Beneficios","index":3,"n_rows":76,"n_cols":5,"rows_kept":76,"cut":false,"hidden":false,"merged":[[65,1,65,3],[66,1,66,3]]}
[]
[null,"Fondo de Jubilaciones y Pensiones del Poder Judicial"]
[null,"Estado de Activos Netos Disponibles para Beneficios"]
[null,"AL 31/12/2019"]
[null,"(En colones sin céntimos)"]
[null,null,"NOTAS"]
[null,"DISPONIBILIDADES",null,null,{"$f":"D8","v":5957124059.3899994}]
[null,"Cuentas Corrientes y de Ahorro","Nota 13",{"$f":"+'Nota 13'!D23","v":5957124059.3899994}]
[]
[null,"INVERSIONES EN VALORES ",null,null,{"$f":"D12","v":556686604591.14001}]
[null,"EN CURSO DE PAGO"]
[null,"Inversiones en Valores de Emisores Nacionales ","Nota 14",{"$f":"+'Nota 14'!D29","v":556686604591.14001}]
[]
[null,"CUENTAS Y PRODUCTOS POR COBRAR SOBRE INVERSIONES",null,null,{"$f":"SUM(D16:D17)","v":10284947229.17}]
[null,"PROVISION PARA PENSIONES EN CURSO DE PAGO"]
[null,"Cuentas Por Cobrar","Nota 15",{"$f":"+'Nota 15'!D16","v":1045244311.61}]
[null,"Productos Por Cobrar Sobre Inversiones De Emisores Nacionales ","Nota 16",{"$f":"+'Nota 16'!D25","v":9239702917.5599995}]
[]
[null,"PRESTAMOS A AFILIADOS Y PENSIONADOS",null,null,{"$f":"D20","v":0}]
[null,"Préstamos por Cobrar","Nota 17",{"$f":"+'Nota 17'!D24","v":0}]
[null,"Productos por Cobrar sobre Préstamos","Nota 15",0]
[]
[null,"APORTES POR COBRAR",null,null,{"$f":"SUM(D24:D27)","v":11665481738.6688}]
[null,"Aportes Por Cobrar A Los Trabajadores","Nota 18",{"$f":"+'Nota 18'!J12","v":6384865284.6800003}]
[null,"Aportes Por Cobrar Al Patrono","Nota 18",{"$f":"+'Nota 18'!J16","v":4667193745.4888}]
[null,"Aportes Por Cobrar Al Estado","Nota 18",{"$f":"+'Nota 18'!J19","v":401687424.43000001}]
[null,"Otros Aportes Por Cobrar","Nota 18",{"$f":"+'Nota 18'!J22","v":211735284.06999999}]
[]
[null,"PROPIEDAD, PLANTA Y EQUIPO",null,null,0]
[null,"Mobiliario y Equipo",null,0]
[null,"Equipo de Cómputo",null,0]
[null,"(Depreciación Acumulada)",null,0]
[]
[null,"OTROS ACTIVOS",null,null,0]
[null,"Intangibles","Nota 19",0]
[]
[null,"ACTIVO TOTAL",null,null,{"$f":"E7+E10+E14+E19+E23","v":584594157618.3689}]
[]
[null,"CUENTAS POR PAGAR",null,null,{"$f":"SUM(D40:D42)","v":3843416622.0399995}]
[null,"Retenciones A Pensionados","Nota 20",{"$f":"+'Nota 20'!E17","v":931509437.23000002}]
[null,"Obligaciones Por Liquidar Empleados y Exempleados","Nota 21",{"$f":"+'Nota 21'!D15","v":4165718.71}]
[null,"Obligaciones Transitorias por Liquidar","Nota 22",{"$f":"+'Nota 22'!D26","v":2907741466.0999994}]
[]
[null,"PROVISIONES",null,null,{"$f":"D45","v":590541733.49000001}]
[null,"Cotización Seguro De Enfermedad y Maternidad","Nota 23",{"$f":"+'Nota 23'!F12","v":590541733.49000001}]
[]
[null,"PROVISIONES PARA PENSIONES EN CURSO DE PAGO","Nota 24",null,{"$f":"+'Nota 24'!J16","v":574189847647.98999}]
[]
[null,"PASIVO TOTAL",null,null,{"$f":"E47+E44+E39","v":578623806003.52002}]
[{"$nulls":4}," "]
[null,"ACTIVOS NETOS DISPONIBLES PARA BENEFICIOS FUTUROS (1)",null,null,{"$f":"+'Cambios Act. Netos Disponibles'!E52","v":5970351614.6399956}]
[]
[null,"CUENTAS DE ORDEN","Nota 25",null,{"$f":"+'Nota 25'!D12","v":329328038.14999998}]
[]
[null,"Observaciones:"]
[null,"(1) Activos Netos Disponibles para Beneficios Futuros al Final del Periodo: Corresponde al total de activo menos el total de pasivo."]
[]
[]
[]
[null,"             Lic. Luis Guillermo Vásquez Ureña ","             MBA. María Antonieta Herrera Charraun"]
[null,"            Jefe Subproceso Contable ","       Jefa Proceso Presupuestario Contable "]
[]
[]
[]
[]
[null,"            MBA. Floribel Campos Solano"]
[null,"                  Jefa a.i. Macroproceso Financiero Contable"]
[]
[]
[]
[]
[null,"Realizado por:"]
[null,"Licda. Yesenia Flores Chacón"]
[null,"Coordinadora de Unidad 1 a.i."]
[]
[null,"Observación: Enlace al Manual de Políticas Contables."]

{"sheet":"Nota 1","index":4,"n_rows":37,"n_cols":8,"rows_kept":37,"cut":false,"hidden":false,"merged":[[2,1,3,7],[4,1,4,7],[40,1,40,7],[8,1,8,7],[39,1,39,7]]}
[]
[null,"Nota 1:"]
[null,"Productos sobre Inversiones de Emisores Nacionales"]
[]
[null,"al 31 de Diciembre de 2019"]
[]
[]
[]
[null,"De acuerdo con lo establecido por la SUPEN, este rubro se encuentra conformado por los intereses devengados del mes producto de las inversiones en títulos valores, la amortización de los descuentos, las comisiones pagadas y primas en títulos valores."]
[]
[]
[]
[null,"MENSUAL "]
[]
["Cuenta Contable","PRODUCTOS SOBRE INVERSIONES DE VALORES NACIONALES",null,"COLONES",null,"DOLARES",null,"TOTAL"]
[]
["511.01.","Intereses devengados",null,3322854872.0999999,null,253690677.14000002,null,3576545549.2399998]
["511.01.","Amortización de descuento",null,27329167.879999999,null,7679206.4500000002,null,35008374.329999998]
["511.01.","Comisión devengada",null,-431203.12,null,-27973.200000000001,null,-459176.32]
["511.01.","Amortización de prima",null,-133936599.54000002,null,-2096381.6199999999,null,-136032981.16000003]
["511.01.","Otros intereses devengados",null,0,null,0,null,0]
["511.01.","Ingresos por Dividendos",null,0,null,149791748.83000001,null,149791748.83000001]
["511.01.","Ingresos por Rendimientos",null,0,null,0,null,0]
[null,"TOTAL DE PRODUC. SOBRE INVERS. DE VALORES NACIONALES.",null,{"$f":"SUM(D17:D23)","v":3215816237.3200002},null,{"$f":"SUM(F17:F23)","v":409037277.60000002},null,{"$f":"SUM(H17:H23)","v":3624853514.9199996}]
[]
[null,"ACUMULADO"]
[]
["Cuenta Contable","PRODUCTOS SOBRE INVERSIONES DE VALORES NACIONALES",null,"COLONES",null,"DOLARES",null,"TOTAL"]
[]
["511.01.","Intereses devengados",null,38104371689.009995,null,3088443445.4100008,null,41192815134.419998]
["511.01.","Amortización de descuento",null,262320439.63000003,null,88995283.779999986,null,351315723.41000003]
["511.01.","Comisión devengada",null,-8056978.7799999993,null,-692188.35000000009,null,-8749167.129999999]
["511.01.","Amortización de prima",null,-1598944924.1699998,null,-19762527.390000001,null,-1618707451.5599999]
["511.01.","Otros intereses devengados ",null,0,null,0,null,0]
["511.01.","Ingresos por Dividendos",null,0,null,1840812375.5899999,null,1840812375.5899999]
["511.01.","Ingresos por Rendimientos",null,5468922.3399999999,null,0,null,5468922.3399999999]
[null,"TOTAL DE PRODUC. SOBRE INVERS. DE VALORES NACIONALES.",null,{"$f":"SUM(D30:D36)","v":36765159148.029991},null,{"$f":"SUM(F30:F36)","v":4997796389.0400009},null,{"$f":"SUM(H30:H36)","v":41762955537.07}]

{"sheet":"Nota 2","index":5,"n_rows":51,"n_cols":12,"rows_kept":51,"cut":false,"hidden":false,"merged":[[2,2,3,6],[4,2,4,6],[6,2,6,6]]}
[]
[null,null,"Nota 2:"]
[null,null,"Intereses sobre Saldos en Cuentas Corrientes"]
[]
[null,null,{"$f":"+'Nota 1'!B5","v":"al 31 de Diciembre de 2019"}]
[]
[null,null,"Como resultado de los saldos que se mantienen en las cuentas corrientes del Banco Nacional de Costa Rica, Banco de Costa Rica y  Banco Popular, al cierre del presente mes los intereses sobre saldos en cuentas corrientes son los siguientes:"]
[]
[]
[null,null,"Mensual"]
[]
[null,"Cuenta Contable","Cuenta Corriente ",null,"Banco",null,"Intereses Ganados en el Periodo"]
[]
[null,"513.01.00.1.01.01     ","1234-0",null,"Banco Nacional de Costa Rica ",null,911.56]
[null,"513.01.00.1.01.03     ","229-32-9",null,"Banco de Costa Rica ",null,34417447.18]
[null,"513.01.00.1.01.04     ","18-1019277",null,"Banco Popular y de Desarrollo Comunal ",null,0]
[null,"513.01.00.1.01.05     ","174961-7",null,"Banco de Costa Rica ",null,0]
[null,"513.01.00.2.01.02     ","1914-1 $",null,"Banco Popular y de Desarrollo Comunal ",null,0]
[null,"513.01.00.2.01.03     ","112247-9 $",null,"Banco de Costa Rica ",null,537868.59]
[]
[null,null,"Total",null,null,null,{"$f":"SUM(G14:G20)","v":34956227.330000006}]
[]
[]
[null,null,"Acumulado"]
[]
[null,"Cuenta Contable","Cuenta Corriente ",null,"Banco",null,"Intereses Ganados en el Periodo"]
[]
[null,"513.01.00.1.01.01     ","1234-0",null,"Banco Nacional de Costa Rica ",null,20621.169999999998]
[null,"513.01.00.1.01.03     ","229-32-9",null,"Banco de Costa Rica ",null,300173360.83999997]
[null,"513.01.00.1.01.04     ","18-1019277",null,"Banco Popular y de Desarrollo Comunal ",null,3849.52]
[null,"513.01.00.1.01.05     ","174961-7",null,"Banco de Costa Rica ",null,0.02]
[null,"513.01.00.2.01.02     ","1914-1 $",null,"Banco Popular y de Desarrollo Comunal ",null,5.97]
[null,"513.01.00.2.01.03     ","112247-9 $",null,"Banco de Costa Rica ",null,5521175.2300000004]
[]
[]
[null,null,"Total",null,null,null,{"$f":"SUM(G28:G35)","v":305719012.75}]
{"$rows_empty":14}
[{"$nulls":11},0]

{"sheet":"Nota 3","index":6,"n_rows":13,"n_cols":6,"rows_kept":13,"cut":false,"hidden":false,"merged":[[2,1,3,5],[4,1,4,5],[7,1,7,5],[14,1,15,5]]}
[]
[null,"Nota 3:"]
[null,"Ganancias por Negociación de Instrumentos Financieros"]
[]
[null,{"$f":"+'Nota 1'!$B$5:$H$5","v":"al 31 de Diciembre de 2019"}]
[]
[]
[null,"Se registra la ganancia generada pruducto del canje de instrumentos del Ministerio de Hacienda realizado por el Porceso de Inversiones."]
[]
[]
["Cuenta Contable","Cuenta",null,"Mes",null,"Acumulado"]
["514.00.00     ","Ganancia por Negociación de Instrumentos Financieros",null,0,null,27092481.010000002]
[null,"Ganancia Total Generada",null,{"$f":"SUM(D12:D12)","v":0},null,{"$f":"SUM(F12:F12)","v":27092481.010000002}]

{"sheet":"Nota 4","index":7,"n_rows":17,"n_cols":6,"rows_kept":17,"cut":false,"hidden":false,"merged":[[2,1,3,5],[4,1,4,5],[18,1,19,5],[7,1,7,5],[9,1,9,5]]}
[]
[null,"Nota 4:"]
[null,"Ganancias por Fluctuación Cambiaria"]
[]
[null,{"$f":"+'Nota 1'!$B$5:$H$5","v":"al 31 de Diciembre de 2019"}]
[]
[]
[null,"Se registra la ganancia generada en las partidas de los estados financieros cuando el tipo de cambio para la valuación de los activos en dólares, emitido por el Banco Central de Costa Rica, experimenta una tendencia al alza, provocando la ganancia en el valor de los rubros que componen estos estados financieros. "]
[]
[null,"Es importante señalar que el tipo de cambio utilizado para la valoración de las inversiones en dólares y cuentas relacionadas, así como de los movimientos de las cuentas bancarias en dólares es el tipo de cambio para el sector público no bancario, de conformidad con lo establecido en la Ley Orgánica del Banco Central de Costa Rica (BCCR) en su artículo 89."]
[]
["Cuenta Contable","Cuenta",null,"Mes",null,"Acumulado"]
["517.02.00     ","Por Cuentas Corrientes",null,5272951.68,null,60453006.329999998]
["517.04.00     ","En Inversiones En Valores De Emisores Nacionales $",null,2451818294.27,null,16466433838.469999]
["517.07.00     ","Por Cuentas Por Cobrar",null,240842.41,null,5031715.63]
["517.08.00     ","Por Productos Por Cobrar Sobre Inversion",null,27585888.920000002,null,150642821.99000001]
[null,"Ganancia Total Generada",null,{"$f":"SUM(D13:D16)","v":2484917977.2799997},null,{"$f":"SUM(F13:F16)","v":16682561382.419998}]

{"sheet":"Nota 5","index":8,"n_rows":15,"n_cols":6,"rows_kept":15,"cut":false,"hidden":false,"merged":[[2,1,3,5],[4,1,4,5],[9,1,9,5],[7,1,7,5]]}
[]
[null,"Nota 5:"]
[null,"Ganancias por Variaciones en la Unidad de Referencia"]
[]
[null,{"$f":"+'Nota 1'!$B$5:$H$5","v":"al 31 de Diciembre de 2019"}]
[]
[]
[null,"Ganancias en virtud de la colocación de recursos a través de Títulos de Unidades de Desarrollo (TUDES) que ofrece el Ministerio de Hacienda a largo plazo."]
[]
[null,"Los Tudes, son títulos valores expresados en unidades de desarrollo, éstas unidades corresponden a un índice calculado por la Superintendencia General de Valores, con base a la variación registrada en el Índice de Precios al Consumidor del mes anterior. Al vencimiento de los cupones y del principal se cancelan en colones, por lo que la ganancia o la pérdida en los títulos valores va a depender del comportamiento de la inflación y por ende, de la variación en el valor de la unidad de desarrollo. Mensualmente se realiza el ajuste de las inversiones de acuerdo con el valor de la unidad de desarrollo al final del mes, a fin de que se actualice su valor, reflejando una pérdida o ganancia."]
[]
[]
["Cuenta Contable","Cuenta",null,"Mes",null,"Acumulado"]
["518.00.00","En valores emitidos por el Gobierno",null,148515570.34,null,2419529371.4000001]
[null,"Ganancia Total Generada",null,{"$f":"SUM(D14:D14)","v":148515570.34},null,{"$f":"SUM(F14:F14)","v":2419529371.4000001}]

{"sheet":"Nota 6","index":9,"n_rows":14,"n_cols":14,"rows_kept":14,"cut":false,"hidden":false,"merged":[[2,1,3,11],[4,1,4,11],[7,1,7,11],[8,1,8,11],[9,1,9,11]]}
[]
[null,"Nota 6:"]
[null,"Ingresos sobre Préstamos a Afiliados y Pensionados "]
[]
[null,{"$f":"+'Nota 1'!$B$5:$H$5","v":"al 31 de Diciembre de 2019"}]
[]
[]
[null,"Constituye el interés devengado por el crédito otorgado a la Asociación Nacional de Empleados Judiciales (ANEJUD), según contrato suscrito en diciembre de 2008 por ¢1,000,000,000 (sin número de contrato), entre ANEJUD y el Consejo Superior del Poder Judicial, en su condición de administrador de este Fondo. El detalle de los montos se muestran en la nota N° 17 de este informe."]
[]
[null,"La totalidad del préstamo de ANEJUD se canceló en febrero de 2019."]
["Cuenta Contable","Total de Préstamo",null,"Entidad",null,"Plazo",null,"Tasa actual",null,"Ingreso Por Interes mensual",null,"Ingreso Por Interes Acumulado"]
[{"$nulls":13}," "]
["519.00.00",1000000000,null,"ANEJUD",null,"10 años",null,8.0799999999999997E-2,null,0,null,49424.37]
[{"$nulls":7}," "]

{"sheet":"Nota 7","index":10,"n_rows":33,"n_cols":14,"rows_kept":33,"cut":false,"hidden":false,"merged":[[32,1,32,7],[30,1,30,7],[28,1,28,7],[2,1,3,7],[4,1,4,7],[24,1,24,7],[26,1,26,7],[7,1,7,7],[9,1,9,7]]}
[]
[null,"Nota 7:"]
[null,"PLAN DE CONTRIBUCIONES"]
[]
[null,{"$f":"++'Nota 1'!$B$5:$H$5","v":"al 31 de Diciembre de 2019"}]
[]
[]
[null,"Comprende los aportes realizados  por el Poder Judicial en su calidad de Patrono y Estado, los cuales se aplican sobre los salarios devengados por los servidores judiciales."]
[]
[null,"Asimismo, está constituido por la contribución de los empleados, jubilados y pensionados judiciales, a los cuales en la actualidad se les deduce de su salario, jubilación y pensión. "]
[]
["Cuenta Contable","Aportes",null,"Porcentajes",null,"Mensual",null,"Acumulado"]
[]
["311.01.00.1","Trabajadores",null,0.13,null,3250357069.0100002,null,38034051833.019997]
["312.01.00.1","Patrono",null,0.14360000000000001,null,3394059615.6399999,null,40120250994.139999]
["313.01.00.1.00","Estado",null,1.24E-2,null,292728858.01999998,null,3582108977.8600001]
["314.01.00.1.00.00","Jubilados y Pensionados ",null,0.13,null,877189001.87,null,10091006462.57]
["314.01.00.1.00.01","Contribución Solidaria",null,"-",null,69107792.569999993,null,912606242.39999998]
[]
[null,"Total Aportes",null,null,null,{"$f":"SUM(F14:F18)","v":7883442337.1099997},null,{"$f":"SUM(H14:H18)","v":92740024509.98999}]
[]
[]
[null,"Notas:   ",{"$nulls":11}," "]
[]
[null,"1-)  Mediante Acuerdo del Consejo Superior N° 2-2018, art I, se autoriza a disminuir el porcentaje del aporte estatal, a partir del mes de enero 2018 pasando de 1.24% a 0.58%, lo anterior por cuanto el Ministerio de Hacienda recortó del Presupuesto del Poder Judicial la suma de ¢1,200,000,000 (Mil doscientos millones de colones)."]
[]
[null,"2-) Mediante Acuerdo del Consejo Superior, sesión N°26-2018 del 5/04/2018, en su punto tercer indica:\n\"[...] modificar el acuerdo tomado en sesión N°2-18 del 11/01/2018, art I, por lo que deberá la Dirección de Gestión Humana registrar como porcentaje del aporte estatal al Fondo de Jubilaciones y Pensiones el definido por la Caja Costarricense del Seguro Social (CCSS)\". Según lo definido en este acuerdo el porcentaje regresa al 1.24% establecido en Decreto Ejecutivo N° 39202-MTSS-H en su artículo 2, publicado en la Gaceta N° 170 del martes 01 de setiembre del 2015."]
[]
[null,"3-) Mediante la publicación de la Ley 9544, que reforma el Regimen de Jubilaciones y Pensiones del Poder Judicial y Acuerdo del Consejo Superior Sesión N°46-18 celebrada el 22/05/2018, art VI, se solicita realizar a partir de esta fecha el incremento al aporte obrero del 11% al 13%, así como el rebajo de la contribución especial, solidaria y redistributiva a las personas jubiladas y pensionadas, conforme el articulo 236 de esta Ley."]
[]
[null,"5-) En el Acuerdo del Consejo Superior, sesión N° 4-19 del 17 de enero de 2019 artículo XXXVI se acordó: \"Tomar nota de la comunicación de la Dirección de Gestión Humana, en oficio DGH-004-2019 del 10 de enero de 2019, referente a el cambio realizado en el parámetro del aporte estatal al Fondo de Jubilaciones y Pensiones de un 0.58% a  1.24%, fundamentado en los recursos asignados  por el Ministerio de Hacienda en la subpartida 60404, según lo establecido en la Ley de Presupuesto Ordinario y Extraordinario de la República para el Ejercicio Económico del 2019.\""]
[]
[null,"6-) En el aporte de trabajadores incluye el rubro de Reconocimeinto de tiempo servido."]

{"sheet":"Nota 8","index":11,"n_rows":19,"n_cols":6,"rows_kept":19,"cut":false,"hidden":false,"merged":[[2,1,3,5],[4,1,4,5],[7,1,7,6],[18,1,18,5]]}
[]
[null,"Nota 8:"]
[null,"SALIDA DE RECURSOS"]
[]
[null,{"$f":"+'Nota 7'!B5:H5","v":"al 31 de Diciembre de 2019"}]
[]
[]
[null,"Corresponde al traslado de todos los recursos de la cuenta patrimonial “Reserva en Formación” a la cuenta Provisión para Pensiones en Curso de Pago”, por ende todos los recursos generados de los aportes, así como los rendimientos obtenidos por las inversiones se continúan registrando en la Provisión Para Pensiones en Curso de Pago."]
[]
[]
[null,null,null,"Mensual",null,"Acumulado"]
[]
[null,"Aportes ",null,7814334544.54,null,91827418267.589996]
[null,"Rendimientos ",null,151927195.82999992,null,32014811981.610001]
[]
[null,"TOTAL",null,{"$f":"SUM(D13:D14)","v":7966261740.3699999},null,{"$f":"SUM(F13:F14)","v":123842230249.2}]
[]
[]
[null,"La variación de los rendimientos de noviembre a diciembre, se debe a la baja del tipo de cambio de ¢ 22.05 (de octubre a noviembre), ya que el portafolio de inversiones del Fondo de Jubilaciones y Pensiones del Poder Judicial mantiene invertidos en dólares un monto cercano al 13.55% de su portafolio total, es decir una suma aproximada de $ 131 millones de dólares que justifica un efecto de la variación de un mes a otro. Esto de acuerdo a lo indicado por el Proceso de Inversiones mediante correo electrónico del 8 de enero de 2020."]

{"sheet":"Nota 9","index":12,"n_rows":12,"n_cols":6,"rows_kept":12,"cut":false,"hidden":false,"merged":[[2,1,3,5],[4,1,4,5],[7,1,7,6],[13,1,13,5]]}
[]
[null,"Nota 9:"]
[null,"Pérdida por Negociación de Instrumentos Financieros"]
[]
[null,{"$f":"+'Nota 7'!B5:H5","v":"al 31 de Diciembre de 2019"}]
[]
[]
[null,"Corresponde a gastos asociados a las comisiones producto de compra de divisas para la negociación de Inversiones."]
[]
["Cuenta Contable","Cuenta",null,"Mes",null,"Acumulado"]
["411.00.00","Pérdida por Negociación de Instrumentos Financieros",null,0,null,396736.05]
[null,"Pérdida Total Generada",null,{"$f":"SUM(D11:D11)","v":0},null,{"$f":"SUM(F11:F11)","v":396736.05}]

{"sheet":"Nota 10","index":13,"n_rows":16,"n_cols":6,"rows_kept":16,"cut":false,"hidden":false,"merged":[[2,1,3,5],[4,1,4,5],[7,1,7,5]]}
[]
[null,"Nota 10:"]
[null,"Pérdida por Fluctuación Cambiaria"]
[]
[null,{"$f":"+'Nota 8'!B5:F5","v":"al 31 de Diciembre de 2019"}]
[]
[]
[null,"Corresponde a la pérdida generada en cuentas corrientes, inversiones y cuentas relacionadas cuando el tipo de cambio para la valuación de los activos en dólares, emitido por el Banco Central de Costa Rica."]
[]
[]
["Cuenta Contable","Cuenta",null,"Mes",null,"Acumulado"]
["416.02.00     ","Por Cuentas Corrientes",null,906985.2,null,114098135.59]
["416.04.00     ","En Inversiones En Valores De Emisores Nacionales $",null,1120287510.6900001,null,20944969159.5]
["416.07.00     ","Por Cuentas Por Cobrar",null,970.7,null,4301350.41]
["416.08.00     ","Por Productos Por Cobrar Sobre Inversion",null,12670584.43,null,212777144.63]
[null,"Pérdida Total Generada",null,{"$f":"SUM(D12:D15)","v":1133866051.0200002},null,{"$f":"SUM(F12:F15)","v":21276145790.130001}]

{"sheet":"Nota 11","index":14,"n_rows":15,"n_cols":6,"rows_kept":15,"cut":false,"hidden":false,"merged":[[3,1,4,5],[5,1,5,5],[8,1,8,5],[10,1,10,5]]}
[]
[null,"Nota 11:"]
[]
[null,"Pérdida por Variaciones en la Unidad de Referencia"]
[]
[null,{"$f":"+'Nota 10'!B5:F5","v":"al 31 de Diciembre de 2019"}]
[]
[]
[null,"Pérdida generada por la variación en la unidad de referencia de las Unidades de Desarrollo (UDES), relativa a los recursos invertidos por el Fondo a través de títulos en UDES (TUDES) que ofrece el Ministerio de Hacienda a largo plazo."]
[]
[null,"Conforme lo establece el manual de cuentas de SUPEN se registra la pérdida contable producto de la disminución en la unidad de referencia en los rubros de valor facial de las inversiones en TUDES, prima amortizada y el descuento recibido."]
[]
["Cuenta Contable","Cuenta",null,"Mes",null,"Acumulado"]
["417.00.00","En valores emitidos por el Gobierno",null,31291906.599999998,null,518992440.26000005]
[null,"Pérdida Total Generada",null,{"$f":"SUM(D14:D14)","v":31291906.599999998},null,{"$f":"SUM(F14:F14)","v":518992440.26000005}]

{"sheet":"Nota 12","index":15,"n_rows":25,"n_cols":6,"rows_kept":25,"cut":false,"hidden":false,"merged":[[21,1,21,5],[20,1,20,5],[23,1,23,5],[24,1,24,5],[2,1,3,5],[4,1,4,5],[7,1,7,5],[18,1,18,5],[17,1,17,5]]}
[]
[null,"Nota 12:"]
[null,"GASTOS GENERALES"]
[]
[null,{"$f":"+'Nota 11'!B6:F6","v":"al 31 de Diciembre de 2019"}]
[]
[]
[null,"Esta cuenta agrupa varias partidas, las cuales se describen a continuación:"]
[]
["Cuenta Contable","GASTOS GENERALES",null,"MENSUAL",null,"ACUMULADO"]
[]
["420.05.00     ","Servicios Bancarios",null,172184.67,null,957895.11]
["420.07.00     ","Cotización Seguro De Enfermedad y Maternidad",null,590415674.54999995,null,6792635089.4899998]
["420.13.00     ","Gastos Diversos",null,141221.73000000001,null,2923141.24]
[]
[null,"TOTAL DE GASTOS GENERALES",null,{"$f":"SUM(D12:D15)","v":590729080.94999993},null,{"$f":"SUM(F12:F15)","v":6796516125.8399992}]
[]
[null,"Gastos por servicios bancarios:"]
[null,"Corresponde a gastos por comisiones bancarias cobradas por el Banco Nacional , lo anterior a raíz de conclusión “Convenio Institucional entre el Poder Judicial y la referida Entidad Bancaria”, cuyo objeto consistía en que el Poder Judicial aceptaba realizar una serie de transacciones bancarias con el Banco Nacional, a efecto de recibir un trato preferencial en algunos servicios bancarios, como lo fueron: exoneración del pago de cualquier tipo de comisión (transferencias electrónicas, giros bancarios, emisión de estados de cuenta, transacciones “SINPE”, transferencias entre cuentas del Poder Judicial y el Fondo de Jubilaciones y Pensiones), dichos gatos son del conocimiento de la Dirección Ejecutiva, según oficios DGBI-SML-25-2016, 2232-DE-2016 y 2342-DE-2016."]
[]
[null,"Cotización Seguro de Enfermedad y Maternidad: "]
[null,"Carga social en la que incurre el Fondo como Patrono, con la Caja Costarricense del Seguro Social, por concepto de Enfermedad y Maternidad, correspondiente al 8.75% sobre las jubilaciones y pensiones canceladas."]
[]
[null,"Gastos diversos"]
[null,"Corresponde a diversos ajustes relacionados principalmente con las inversiones y cuentas relacionadas. "]

{"sheet":"Nota 13","index":16,"n_rows":26,"n_cols":8,"rows_kept":26,"cut":false,"hidden":false,"merged":[[2,1,3,7],[4,1,4,7],[7,1,7,7],[26,1,26,7],[27,1,27,7],[25,1,25,7],[24,1,24,7]]}
[]
[null,"Nota 13:"]
[null,"Cuentas Corrientes y de Ahorro"]
[]
[null,{"$f":"+'Nota 12'!B5:F5","v":"al 31 de Diciembre de 2019"}]
[]
[]
[null,"El saldo en cuentas corrientes bancarias que mantiene el Fondo de Jubilaciones en colones y en dólares americanos son los siguientes:"]
[]
["Cuenta Contable","CUENTAS CORRIENTES Y DE AHORRO PROV.  PARA PENSIONES EN CURSO DE PAGO",null,"TOTAL ¢",null,"TIPO DE CAMBIO",null,"TOTAL $ \n"]
[]
["112.01.00.1.01.01     ","Banco Nacional de C.R. Cta 1234-0",null,99910.59]
["112.01.00.1.01.03     ","Banco de Costa Rica Cta 229-32-9",null,5900016277.1199999]
["112.01.00.1.01.04     ","Banco de Costa Rica Cta 174961-7",null,99000.01]
["112.01.00.1.01.05     ","Banco Popular Cta 1019277-0",null,99000]
["112.01.00.1.01.06     ","Banco Nacional de C.R. 2413-8 ",null,0]
["112.01.00.1.01.07     ","Banco de Costa Rica 349803-4",null,108.94]
["112.01.00.1.01.08     ","Banco de Costa Rica 349824-7",null,41.74]
["112.01.00.2.01.01     ","Banco de Costa Rica Cta. 112247-9 $",null,55789478.75,null,572.95000000000005,null,{"$f":"+D19/F19","v":97372.333973296089}]
["112.01.00.2.01.02     ","Banco Nacional de C.R. Cta  601227-7 $",null,727142.29,null,{"$f":"F19","v":572.95000000000005},null,{"$f":"+D20/F20","v":1269.119975565058}]
["112.01.00.2.01.03     ","Banco Popular Cta 1914-1 $",null,293099.95,null,{"$f":"F20","v":572.95000000000005},null,{"$f":"+D21/F21","v":511.56287634174009}]
[]
[null,"TOTAL EN CUENTAS CORRIENTES Y DE AHORRO",null,{"$f":"SUM(D12:D21)","v":5957124059.3899994},null,null,null,{"$f":"SUM(H19:H21)","v":99153.016825202882}]
[]
[null,"Nota: "]
[null,"Los documentos pendientes de asocies y aprobaciones,  se informaron a los Subprocesos correspondientes para su registro, y así el debido seguimiento."]

{"sheet":"Nota 14","index":17,"n_rows":29,"n_cols":8,"rows_kept":29,"cut":false,"hidden":false,"merged":[[30,1,30,7],[2,1,3,7],[9,1,9,3],[19,1,19,3],[4,1,4,7],[7,1,7,7]]}
[]
[null,"Nota 14:"]
[null,"Inversiones en Valores de Emisores Nacionales "]
[]
[null,{"$f":"+'Nota 13'!B5:H5","v":"al 31 de Diciembre de 2019"}]
[]
[]
[null,"Dicho rubro resume los diferentes movimientos de inversiones en colones y dólares emitidas por el Gobierno de Costa Rica tales como el Ministerio de Hacienda, Banco Central de Costa Rica, Banco de Costa Rica, el Banco Nacional de Costa Rica, Banco Popular y de Desarrollo Comunal e Instituto Costarricense de Electricidad, considerando el registro de la inversión al costo de adquisición (Valor Facial + Primas – Descuentos). "]
[]
["Cuenta Contable","COLONES"]
[]
["121.00.00","Inv. Valor Facial",null,478183109815.77002]
["121.00.00","Primas ",null,8141033053.5199995]
["121.00.00","Descuentos",null,-4495403154.8999996]
["121.00.00","Operaciones de Reportos",null,0]
[]
[null,"SALDO INVERSIONES EN COLONES ",null,{"$f":"SUM(D12:D15)","v":481828739714.39001}]
[]
[]
["Cuenta Contable","SALDO DÓLARES",null,null,null,"TIPO DE CAMBIO ",null,"SALDO EN COLONES"]
[]
["121.00.00","Inv. Valor Facial",null,74008023.950013071,null,572.95000000000005,null,42402897322.159996]
["121.00.00","Primas ",null,179490.67941356133,null,572.95000000000005,null,102839184.76999998]
["121.00.00","Descuentos",null,-602916.09967710963,null,572.95000000000005,null,-345440779.31]
["121.00.00","Títulos de Participación",null,57068800.330098607,null,572.95000000000005,null,32697569149.130001]
[]
[null,"SALDO INVERSIONES EN DÓLARES (COLONIZADO)",null,{"$f":"SUM(D22:D25)","v":130653398.85984811},null,null,null,{"$f":"SUM(H22:H25)","v":74857864876.75}]
[]
[null,"TOTAL GENERAL:",null,{"$f":"+D17+H27","v":556686604591.14001}]

{"sheet":"Nota 15","index":18,"n_rows":26,"n_cols":4,"rows_kept":26,"cut":false,"hidden":false,"merged":[[2,1,3,3],[4,1,4,3],[27,4,28,5],[7,1,7,3],[18,1,18,3],[25,1,25,3],[27,1,27,3],[28,1,28,3],[20,1,23,3]]}
[]
[null,"Nota 15:"]
[null,"CUENTAS POR COBRAR"]
[]
[null,{"$f":"+'Nota 14'!B5:H5","v":"al 31 de Diciembre de 2019"}]
[]
[]
[null,"En esta cuenta se registran aquellas partidas que debe recuperar el Fondo y se conforma por los siguientes conceptos:"]
[]
["Cuenta Contable","Cuentas por Cobrar",null,"Monto"]
[]
["131.01.00     ","Títulos vencidos pendientes de cobro",null,434575315.73000002]
["131.02.00     ","Impuesto Sobre La Renta Por Cobrar ",null,610668995.88]
["131.03.00     ","Sumas Pend. De cobrar ",null,0]
[]
[null,"Saldo:",null,{"$f":"D12+D13+D14","v":1045244311.61}]
[]
[]
[null,"1)    Títulos y Cupones de inversión vencidos pendientes de cobro, que en virtud de que el cierre de mes corresponde a un día no hábil, las entidades bancarias realizan el pago de estos el día hábil siguiente, para este mes esta cuenta no presenta saldo. Se solicitó al Proceso de Inversiones que es el encargado el seguimiento realizado. En diciembre 2019 se realiza un ajuste remitido por el Proceso de Inversiones por información errónea remitida por la SAFI del Grupo Financiero Improsa relativa al Fondo Inmobiliario Gibraltar (Fondo Cerrado), para el mes de octubre de 2019 y que trajo como consecuencia que el dato trimestral no coincidiera, por lo que los ingresos registrados contablemente durante octubre y noviembre 2019 se encontraran sobrevaluados respecto a la realidad. Se registra el ajuste a períodos anteriores en dólares contra los cupones vencidos pendientes de cobro que serán cancelados económicamente durante el mes de enero 2020, a fin de reflejar contable y financieramente el dato correcto para efectos del Estado Financiero y el cálculo que realiza este Proceso del rendimiento de cartera del FJPPJ que sirve como insumo para toma de decisiones y como variable para el cálculo del reconocimiento de tiempo servido fuera de esta Institución. Para la contabilidad del mes de enero 2020, se realizará el ajuste contable que corresponde para balancear los saldos contables con el auxiliar, conforme el proceso de integración contable que mantiene el Sistema de Carteras de Inversión (SCI) con el Sistema Contable. Esto según correo electrónico del Proceso de Inversiones del 07 de enero de 2020."]
[]
[null,"2) Corresponden aquellas sumas que debe recuperar el Régimen por concepto de exención del 8% del impuesto sobre la renta de los títulos valores, que por su situación particular, no es posible cobrarlos inmediatamente con el vencimiento de los cupones. El Subproceso de Ingresos indica lo siguiente con el seguimiento: (1) La Presidencia de la Corte remitió un oficio a Casa Presidencial para los años 2004 y 2005. La Dirección Ejecutiva con oficio 4167-DE-2019 del 11/09/2019 indicó al Director del Despacho de la Presidencia: \"Traslado copia de oficio N° 737-TI-2019 de fecha 9 de setiembre en curso, referente a la devolución del impuesto sobre renta de vieja data, a efecto de que se nos informe si se ha tenido algún avance respecto a las conversaciones con el Presidente de la República, encomendadas por el Consejo Superior en sesión N° 84-18 celebrada el 25 de setiembre de 2018, artículo XV\". Al respecto, la Presidencia de la Corte en el mes de setiembre de 2019, remite consulta por correo electrónico de fecha a Casa Presidencial el cual cita: \"Siguiendo instrucciones superiores y en referencia al oficio adjunto, el cual fue recibido por el Ministerio de la Presidencia el 4 de abril de 2019, me permito consultarle si existe alguna respuesta al respecto.\" Se mantiene el seguimiento del caso. (2) La Presidencia de la Corte remitió un oficio a Grandes Contribuyentes para lo del periodo 2018. La Dirección Ejecutiva con oficio 4669-DE-2019 del 04 de octubre de 2019 remite a Financiero Contable el acuerdo del Consejo Superior de Sesión 80-19 del 12 de setiembre de 2019, mediante el cual se acordó: \"...) Tener por recibido el oficio N° 4040-DE-2019 del 5 de setiembre de 2019, suscrito por la máster Ana Eugenia Romero Jenkins, Directora Ejecutiva, relacionado con las acciones legales procedentes en relación a la resolución DGCN-133-2019, emitida por la señora Patricia Castillo Vargas, directora de la Dirección de Grandes Contribuyentes Nacionales. 2.)  Deberá el Departamento de Financiero Contable alertar a la Junta Administradora del Fondo de Pensiones del Poder Judicial, en el informe de traspaso de la Comisión del Fondo de Jubilaciones y Pensiones del Poder Judicial, sobre la situación expuesta en el criterio jurídico N° DJ-2361-2019 de fecha 3 de setiembre de 2019, suscrito por el máster Rodrigo Alberto Campos Hidalgo, Director Jurídico...\" (3) El Subproceso de Ingresos realizó las gestiones correspondientes para la devolución de los correspondiente de Fondos Inmobiliarios. De lo anterior, se solicitará a dicho Subproceso de Ingresos que es el encargado de dichas cuentas el seguimiento del mismo. El cual indica que, en cuanto al criterio emitido por la firma Facio y Cañas que, con oficio 916-TI/UCC-2018 del 02 de octubre de 2018 se hizo del conocimiento de la Dirección Ejecutiva, de lo cual esa Dirección con oficio 4855-DE-2018 del 10 de octubre de 2018, indicó que se debe estar a espera del resultado del Recurso de Apelación contra la resolución N° DGCN-097-2018 de fecha 31 de mayo de 2018, en la cual se denegó la exención del Impuesto sobre la Renta en los rendimientos generados en operaciones de recompras o reportos realizadas por medio de una bolsa de valores y operaciones con fondos de inversión y fondos inmobiliarios."]
[]
[]
[]
[]
[null,"3)  En esta cuenta se registrará las cuentas por cobrar, generadas de la captación de inversiones, por comisiones pagadas de más, intereses moratorios u otros."]

{"sheet":"Nota 16","index":19,"n_rows":25,"n_cols":4,"rows_kept":25,"cut":false,"hidden":false,"merged":[[3,1,4,3],[5,1,5,3],[9,1,9,3],[11,1,11,3],[26,1,26,3]]}
[]
[null,"Nota 16:"]
[]
[null,"Productos por cobrar sobre Inversiones de Emisores Nacionales"]
[]
[null,{"$f":"+'Nota 15'!B5:D5","v":"al 31 de Diciembre de 2019"}]
[]
[null,"La cuenta se conforma por el registro de:"]
[]
[null,"·         La parte proporcional de los intereses devengados por las inversiones con cupones en títulos valores, que fueron adquiridos por el Fondo, acreditándose a la contrapartida de “Intereses Devengados”. "]
[]
[null,"·         Los intereses que se acumulan al costo de las inversiones del Mercado Primario y Secundario, donde se adquieren títulos valores de primera y segunda mano, con cupones de intereses corridos, los cuales se suman a los desembolsos que realiza el Fondo para la adquisición de esos valores, y que al vencimiento del cupón son reembolsados. "]
[]
["Cuenta Contable","Productos por cobrar sobre Inversiones",null,"Monto"]
[]
["132.01.01     ","Sobre Valores Emitidos Por El Banco Central",null,89452527.769999996]
["132.01.02     ","Sobre Valores Emitidos Por El Gobierno",null,8197324054.4799995]
["132.01.03     ","Sobre Valor. Emit. otras Ent Pub. no Fininancieras",null,77647948.450000003]
["132.01.04     ","Sobre Valores Emitidos Por Bancos Comerciales",null,167867549.47]
["132.01.05     ","Sobre Val. Emit. Bcos. Pub. Ley. Especiales",null,137011180.56]
["132.01.06     ","Sobre Val. Emit. Bcos. Bancos Privados",null,570399656.83000004]
["132.01.09   ","Sobre operaciones de Reportos",null,0]
["132.02.00     ","Dividendos por Cobrar",null,0]
[]
[null,"Saldo",null,{"$f":"SUM(D16:D24)","v":9239702917.5599995}]

{"sheet":"Nota 17","index":20,"n_rows":30,"n_cols":4,"rows_kept":30,"cut":false,"hidden":false,"merged":[[31,1,31,3],[29,1,29,3],[2,1,3,3],[4,1,4,3],[7,1,7,3],[26,1,26,3],[27,1,27,3]]}
[]
[null,"Nota 17:"]
[null,"Préstamos por Cobrar"]
[]
[null,{"$f":"+'Nota 16'!B6:D6","v":"al 31 de Diciembre de 2019"}]
[]
[]
[null,"Corresponde al saldo del préstamo por la suma de ¢1,000,000,000 concedido a la Asociación Nacional de Empleados Judiciales (ANEJUD) en apego de lo dispuesto en el artículo 238 de la Ley Orgánica del Poder Judicial, como se detalla:"]
[]
[null,"SUMAS GIRADAS A:",null," MONTO "]
[]
[null,"ANEJUD:  Débito No. 2863 de la Cta 174961-7 BCR el 9 de diciembre de 2008  (Autorizado por la Dirección Ejecutiva oficio No.9488-DE-08)",null,166244019.15000001]
[null,"ANEJUD: Débito No. 20806860 de la Cta 1234-0 BNCR el 9 de diciembre de 2008 (Autorizado por la Dirección Ejecutiva oficio No.9488-DE-08)",null,410921974.85000002]
[null,"ANEJUD:  Débito No. 379 de la Cta 229-32-9 BCR el 10 de febrero de 2009  (Autorizado por la Dirección Ejecutiva con oficio No. 1123-DE-2009 ).  El desembolso autorizado por esa Dirección Ejecutiva es por ¢422.834.006 de los cuales y a solicitud de ANEJUD con oficio del 10 de febrero de 2009 a Don Walter Jiménez Sorio, Jefe del Departamento Financiero Contable en su oportunidad, se deduce la primera cuota de intereses cancelada por adelantado de ¢6.876.239.  El total girado con el débito No. 379 es ¢415.957.767. ",null,422834006]
[]
[null,"TOTAL DE LOS DESEMBOLSOS",null,{"$f":"SUM(D12:D14)","v":1000000000}]
[]
[null,"Menos. Amortizaciones",null,{"$f":"996790563.73+3161461.33+47974.94","v":1000000000.0000001}]
[]
[null,"Saldo del préstamo",null,{"$f":"+D16-D18","v":0}]
[]
[null,"Mas: Intereses por cobrar"]
[]
[null,"TOTAL POR COBRAR",null,{"$f":"+D20+D22","v":0}]
[]
[]
[null,"El contrato para dicho préstamo se firmó en diciembre 2008 (contrato sin número) del cual ya se giró la totalidad de los recursos a esa entidad."]
[null,"Para los efectos de este crédito, se establecen intereses corrientes conforme se indica en la cuarta cláusula del contrato que dice:"]
[]
[null,"Tipo de interés corriente: Intereses iguales o superiores a los que recibiría el Fondo de Jubilaciones del Poder Judicial por inversiones en títulos valores del sector público, revisable semestralmente, según lo establece el artículo 238 de la Ley Orgánica del Poder Judicial y lo dispuesto por la Corte Plena en sesión celebrada el 15-12-03 artículo XXXIX."]

{"sheet":"Nota 18","index":21,"n_rows":56,"n_cols":10,"rows_kept":56,"cut":false,"hidden":false,"merged":[[34,1,34,9],[35,1,35,9],[37,1,37,9],[38,1,38,9],[2,1,3,9],[4,1,4,9],[7,1,7,9],[31,1,31,9],[32,1,32,9],[39,1,39,9],[40,1,40,9],[42,1,42,9],[44,1,44,9],[47,1,47,9],[57,1,57,9],[48,1,48,9],[50,1,50,9],[51,1,51,9],[53,1,53,9],[55,1,55,9]]}
[]
[null,"Nota 18:"]
[null,"APORTES POR COBRAR"]
[]
[null,{"$f":"+'Nota 17'!B5:D5","v":"al 31 de Diciembre de 2019"}]
[]
[]
[null,"Corresponden a los aporte de los trabajadores, del patrono, del estado y jubilados-Pensionados que se detallan a continuación:"]
[]
["Cuenta Contable","Nota",null,"Sub-nota",null,"APORTES POR COBRAR",null,"Detalle",null,"Total"]
[]
["151.00.00     ","16.1",null,null,null,"Aporte por cobrar a los trabajadores",null,null,null,{"$f":"SUM(H13:H15)","v":6384865284.6800003}]
[null,null,null,"16.1.1",null,"Aporte Ordinario",null,51391.02]
[null,null,null,"16.1.2",null,"Aporte Ordinario S .Escolar",null,2789332888.0100002]
[null,null,null,"16.1.3",null,"Aporte Reconocimiento de tiempo servido",null,3595481005.6500001]
["152.00.00     ","16.2",null,null,null,"Aportes por cobrar al Patrono",null,null,null,{"$f":"SUM(H17:H18)","v":4667193745.4888}]
[null,null,null,"16.2.1",null,"Aportes Por Cobrar Poder Jud.-Patrono",null,1584625694.6947999]
[null,null,null,"16.2.2",null,"Apor. x Cobrar Poder Jud.-Patrono (S.E)",null,3082568050.7940001]
["153.00.00     ","16.3",null,null,null,"Aportes por cobrar al Estado",null,null,null,{"$f":"SUM(H20:H21)","v":401687424.43000001}]
[null,null,null,"16.3.1",null,"Aportes Por Cobrar Poder Jud.-Estado",null,136673170.75]
[null,null,null,"16.3.2",null,"Apor. x Cobrar Poder Jud.-Estado (S.E)",null,265014253.68000001]
["154.00.00     ","16.4",null,null,null,"Otros aportes por cobrar",null,null,null,{"$f":"SUM(H23:H26)","v":211735284.06999999}]
[null,null,null,"16.4.1",null,"Sumas canceladas de más a Jubilados y Pensionados",null,82551101.459999993]
[null,null,null,"16.4.2",null,"Aportes Reconocimiento de Tiempo Servido Fuera del Poder Judicial (RTSFPJ)",null,34454233.090000004]
[null,null,null,"16.4.3",null,"Otros aportes por cobrar entidades deductoras",null,1192991.5]
[null,null,null,"16.4.4",null,"Sumas canceladas de más a Jubilados y Pensionados (Aguinaldo)",null,93536958.019999996]
[]
[{"$nulls":5},"TOTAL ",null,null,null,{"$f":"SUM(J12:J26)","v":11665481738.6688}]
[]
[]
[]
[null,"16.1 Aportes por cobrar a los trabajadores"]
[null,"Este grupo contempla las sumas por cobrar proveniente de la estimación mensual del salario escolar a los servidores activos del Poder Judicial. Adicionalmente, incluye los aportes por cobrar de las obligaciones por reconocimiento de tiempo servido fuera del Poder Judicial aprobado por el Consejo Superior de la Corte Suprema de Justicia, a servidores judiciales activos, para efectos de jubilación."]
[]
[null,"16.2 Aportes por cobrar al Patrono "]
[null,"Se compone de las sumas pendientes de cobrar por aportes que recibe el Fondo de Jubilaciones y Pensiones del Estado en su calidad de patrono."]
[]
[null,"16.3 Aportes por cobrar al Estado "]
[null,"Este grupo lo componen las sumas pendientes de cobrar por aportes al Estado que recibe el Fondo de Jubilaciones y Pensiones. "]
[null,"16.4 Otros aportes por cobrar"]
[null,"16.4 .1 Sumas canceladas de más a Jubilados y Pensionados"]
[]
[null,"• Por fallecimiento: Dineros girados de más a jubilados y pensionados fallecidos, donde la fecha de su defunción no fue conocida oportunamente. Es importante anotar que en estos casos el Macroproceso Financiero Contable realiza como uno de los mecanismos alternativos para la recuperación de las sumas giradas en demasía, una “Acta de autorización de rebajo”, mediante la cual los beneficiarios al Fondo de Socorro Mutuo designados por el jubilado fallecido, autorizan voluntariamente la deducción de ese beneficio, de las sumas pagadas de más por el Fondo de Jubilaciones. Dicha deducción se realiza solo con el consentimiento de los causahabientes, los cuales acceden a honrar las obligaciones del jubilado fallecido. Para los casos en donde el procedimiento no ha resultado factible, se analiza el caso y se eleva a conocimiento de las instancias correspondientes. "]
[]
[null,"• Estudios por sumas canceladas de más a jubilados y pensionados: Además se registran las sumas canceladas de más por conceptos diversos, entre los cuales los más relevantes son los montos pagados de más a jubilados que en determinado momento ejercieron un puesto en el Sector Público percibiendo otro sueldo del Estado, de sus bancos, de sus instituciones, de las municipalidades, de las juntas de educación y de las empresas de economía mixta, a los cuales se les suspendió el beneficio del Fondo de Jubilaciones tardíamente, girándoseles recursos en demasía que no les correspondía, de conformidad con lo que reza el artículo 234 de la Ley Orgánica del Poder Judicial. "]
[]
[]
[null,"16.4.2 Aportes Reconocimiento de Tiempo Servido"]
[null,"Corresponde a las contribuciones por cobrar, como resultado del reconocimiento de tiempo servido fuera del Poder Judicial aprobado por el Consejo Superior de la Corte Suprema de Justicia, a servidores judiciales activos y jubilados o pensionados que asumen la deuda de un ex jubilado, según el artículo 231 de la Ley Orgánica del Poder Judicial."]
[]
[null,"16.4.3 Otros aportes por cobrar a Entidades Deductoras"]
[null,"Corresponde a cuentas por cobrar a las entidades deductoras por conceptos diversos entre los cuales los más relevantes son producto de:  "]
[]
[null,"·         La anulación de pagos por concepto de asignaciones por exclusión de beneficiarios del Fondo (fallecimiento, mayoría de edad, matrimonio o cuando el beneficiario se encuentra laborando para otra Institución del Estado mientras recibía el beneficio de su jubilación por parte de este Fondo)"]
[]
[null,"·         Diferencias en la aplicación de ajustes en los montos de las jubilaciones y pensiones que corresponden a deducciones en planilla que ya han sido giradas a dichas Entidades, cuando el Fondo se entera del suceso."]

{"sheet":"Nota 19","index":22,"n_rows":12,"n_cols":8,"rows_kept":12,"cut":false,"hidden":false,"merged":[[2,1,3,7],[4,1,4,7],[11,1,11,7]]}
[]
[null,"Nota 19:"]
[null,"INTANGIBLES"]
[]
[null,{"$f":"+'Nota 18'!B5:J5","v":"al 31 de Diciembre de 2019"}]
[]
[null,"Detalle",null,"Monto",null,"Amortización",null,"Total"]
[null,"Sistema inversiones \"Internet Systems Development Insyde S.A\"",null,7618670,null,-7618670,null,0]
[]
[]
[null,"Nota:"]
[null,"Corresponde al registro de la compra del Sistema de Inversiones a la empresa Internet Systems Development Insyde S.A. con un valor de $14,750.00, valorado al tipo de cambio de la fecha de adquisición del activo (15 de agosto de 2007) de ¢516.52, para un total de ¢7,618,670. A dicho monto se descuenta la amortización acumulada al cierre del presente mes que asciende a ¢7,618,670 para un activo neto de ¢0.00. La vida útil del sistema en mención es de 5 años y considerando que fue registrado en setiembre del 2007 se encuentra depreciado en su totalidad, no obstante, a la fecha de este informe se encuentra en funcionamiento. \n\nEn el periodo comprendido entre el 15 de julio a 12 de diciembre del 2011 la Dirección de Tecnología de Información realizó mejoras al sistema de Inversiones por la suma de ¢1.673.895. Lo anterior, de acuerdo con la información suministrada por la Dirección de Tecnología de la Información, mediante correo electrónico del 27 de abril del 2017 y oficio 1635-DTI-2017, dicho monto se encuentra registrado actualmente en los registros contables del Poder Judicial por igual suma.\n\nCon oficio 425-SC-2015 de 26 de agosto del 2015, se realizó la consulta a la Superintendencia de Pensiones (SUPEN) sobre la forma de registro contable de la información suministrada por la Dirección de Tecnología de Información, en virtud de que, en el Manual de Cuentas para el Régimen de Capitalización Colectiva emitido por dicha Superintendencia, no se observa alguna cuenta contable para el registro de la reevaluación de activos intangibles.\n\n La SUPEN ante la consulta realizada, indicó lo siguiente:\n\n“[…] conforme lo establecido en las Normas internacionales de Información Financiera (NIIF), se le comunica que no existe forma alguna de atribuir costo a un activo intangible luego del final de su vida útil: aunque esté en operación y generando beneficios, su valor en libros deberá seguir siendo cero…” \n\n\n\n\n"]

{"sheet":"Nota 20","index":23,"n_rows":17,"n_cols":8,"rows_kept":17,"cut":false,"hidden":false,"merged":[[3,2,4,4],[5,2,5,4],[8,2,8,4]]}
[]
[null,null,"Nota 20:"]
[]
[null,null,"Retenciones A Pensionados"]
[]
[null,null,{"$f":"+'Nota 19'!B5","v":"al 31 de Diciembre de 2019"}]
[]
[]
[null,null,"Comprende las retenciones mensuales aplicadas en la planilla de jubilados y pensionados judiciales correspondientes a entidades deductoras, que realiza el Fondo a sus distintos beneficiarios, las cuales en el caso de la retención del impuesto sobre la renta y la cuota obrera por enfermedad y maternidad son honradas hasta el mes siguiente de su aplicación."]
[]
[]
[null,"Cuenta Contable","RETENCIONES A JUBILADOS Y PENSIONADOS",null,"TOTAL"]
[]
[null,"211.01.00.1.00.00     ","Impuesto Sobre La Renta",null,594129049.73000002,null,null," "]
[null,"211.02.00.1.00.00     ","Caja Costarricense Seguro Social",null,337380387.5]
[]
[null,null,"TOTAL DE RETENCIONES A JUBILADOS Y PENSIONADOS",null,{"$f":"SUM(E14:E16)","v":931509437.23000002}]

{"sheet":"Nota 21","index":24,"n_rows":21,"n_cols":4,"rows_kept":21,"cut":false,"hidden":false,"merged":[[2,1,3,3],[4,1,4,3],[5,1,5,5],[16,1,18,5]]}
[]
[null,"Nota 21:"]
[null,"Obligaciones Por Liquidar Empleados y Exempleados"]
[]
[null,{"$f":"+'Nota 20'!C6","v":"al 31 de Diciembre de 2019"}]
[null,"En esta cuenta se registran sumas sujetas a devolución por parte del Fondo de Jubilaciones y Pensiones que corresponden a pagos recibidos de más en la cancelación de obligaciones por cobrar por reconocimiento de tiempo servido fuera del Poder Judicial, derivados por el traslado de cuotas que realiza la Caja Costarricense del Seguro Social u otro régimen de pensiones hacia el Fondo de Jubilaciones, las cuales deben abonarse a las cuentas de los servidores judiciales, sin embargo, algunos de esos traslados ingresan cuando ya el servidor ha cancelado la deuda, por lo que se genera un pasivo a favor de éste. "]
[]
[null,"OBLIGACIONES POR LIQUIDAR EMPL. Y EXEMPL.",null,"TOTAL"]
[]
[null,"ONGJ",9713.2199999999993,3722763.78]
[null,"OFCS",null,137132.48000000001]
[null,"EAFL",null,168689.97]
[null,"OFCS",null,137132.48000000001]
[]
[null,"OBLIGACIONES POR LIQUIDAR EMPL. Y EXEMPL.",null,{"$f":"SUM(D10:D14)","v":4165718.71}]
[]
[null,"Con respecto al caso de ONGJ, se ha dado el seguimiento respectivo y el Subproceso de Ingresos indicó lo siguiente: registrado en febrero 19 producto de devolución de Traslado de cuotas de la CCSS por RTS, cuya deuda fue reversada porque fue dejada según lo ordenado por Consejo Superiorsesión 14-19 artículo LXIV del 19 de febrero de 2019, sin embargo se debe esperar a que ese Consejo defina a cuanto equivale el monto a deducido por ese concepto y analice informe de Gestión Humana en donde se calcula dicho tiempo. Mediante correo electrónico del 2 de julio de 2019 el Subproceso de Ingresos informa: \"Con acuerdo del Consejo Superior de sesión 32-19 artículo XII, del 08 de mayo de 2019, se acordó: \": Solicitar criterio a la Dirección Jurídica, respecto a la procedencia de acreditar los recursos trasladados por la Caja Costarricense de Seguro Social (CCSS) al Fondo de Jubilaciones y Pensiones del Poder Judicial a nombre de los servidores.” De lo anterior, el Subproceso de Ingresos mantuvo una reunión con la Dirección Jurídica el 3 de octubre de 2019 en la cual acordaron que dicha Dirección remitiría el criterio jurídico. Con correo del 11 de noviembre de 2019 el Subproceso de Ingresos indica que se reiteró a la Dirección Jurídica y se mantiene el seguimiento. Con correo del 06 de enero de 2020 el Subproceso de Ingresos indica que se está a la espera del criterio y se mantiene el seguimiento."]
[]
[]
[]
[null,"Con respecto a los otros tres casos, son ingresos diciembre 2019."]

{"sheet":"Nota 22","index":25,"n_rows":49,"n_cols":4,"rows_kept":49,"cut":false,"hidden":false,"merged":[[3,1,4,3],[5,1,5,3],[28,1,36,3],[8,1,8,3],[41,1,41,3],[38,1,38,3],[47,1,47,3],[48,1,48,3],[42,1,42,3],[43,1,43,3],[44,1,44,3],[45,1,45,3]]}
[]
[null,"Nota 22:"]
[]
[null,"Obligaciones Transitorias por Liquidar"]
[]
[null,{"$f":"+'Nota 21'!B5:D5","v":"al 31 de Diciembre de 2019"}]
[]
[]
[null,"En esta se registran sumas transitorias que deben liquidarse oportunamente y se compone de los siguientes rubros:"]
[]
["Cuenta Contable","Obligaciones Transitorias por Liquidar",null,"Saldo"]
["216.03.00.1.01.01     ","Benef. no retirados y por fallecimiento",null,52679665.409999996]
["216.03.00.1.02.01     ","Sumas en transito por aclarar",null,142089110.08000001]
["216.03.00.1.03.03     ","Instituciones Financieras -Banco de Costa Rica",null,0]
["216.03.00.1.03.04     ","Institucione Financieras Banco Popular ¢",null,498197.34]
["216.03.00.1.04.01     ","Intituciones Gubernamentales-Poder Judicial-¢",null,0]
["216.03.00.1.04.03     ","Instituciones Gubernamentales-Caja Costarricense Seguro Social",null,3804819.36]
["216.03.00.1.05.01     ","Anejud",null,148458.06]
["216.03.00.1.05.03     ","Otros-Errores Bancarios",null,4610.8599999999997]
["216.03.00.1.06.01     ","Transitoria de deducción",null,0]
["216.03.00.1.07.01     ","* Aporte Junta Administradora FJP",null,2107380362.3599999]
["216.03.00.1.07.02     ","* Aporte Junta Administradora FJP - Jubilados y Pensionados",null,600444472.29999995]
["216.03.00.2.02.01     ","Sumas en tránsito por aclarar $",null,459519.6]
["216.03.00.2.03.04     ","Instituciones Financieras-Banco Popular $",null,232250.73]
[]
[null,"Total Obligaciones Transitorias por Liquidar",null,{"$f":"SUM(D12:D24)","v":2907741466.0999994}]
[]
[]
[null,"* Nota 1: Mediante la publicación de la Ley 9544, se aplica la reforma al capítulo IV, art 239, referente a la comisión por gastos administrativos, la cual indica:      \" Surgirá de deducir un cinco por mil de los sueldos de que devengen los servidores judicial, así como de las jubilaciones y las pensiones a cargo del Fondo. Con estos recursos se pagarán las dietas de los miembros de la Junta Administradora, los salarios de su personal y, en general, sus gastos administrativos...\", dicho aporte dio inicio a partir del 22/05/2018."]
{"$rows_empty":9}
[null,"Con respecto a las sumas en tránsito por aclarar el monto más significativo de ¢2,766,747 es de meses anterios y se encuentra en análisis por parte del Subproceso de Ingresos, el cual indicó mediante correo electrónico del 9 de setiembre 2019 que la CCSS remitió una serie de informes de inspección y se está en el análisis para identificar los montos si corresponden al FJPPJ, por cuanto informarán cuando culminen. La CCSS el 28-10-2019 según oficio SARCL-691-10-2019 remitió la lista de los informes de inspección relacionados con este rubro, de lo cual con oficio 949-TI-2019 del 04-12-2019, se solicitó a la CCSS los informes faltantes en virtud que los remitidos anteriormente no corresponden. Y el monto de ¢ 18,237.45 corresponde a ingresos mayo 2019. El monto restante corresponde a registros de renta realizados por el Subproceso de Ingresos que son abonos de cuentas por cobrar que no estaban registrados en el sistema por cuanto el sistema de inversiones no estaba cerrado."]
[]
[null,"El monto por pagar a la Caja Costarricense del Seguro Social, obedece a:"]
[null,"o   ¢2,890,336 correspondiente a pagos dobles efectuados por dicha entidad producto de informes de inspección por cuotas canceladas de más y devolución de aportes. Lo anterior fue comunicado a la Dirección Ejecutiva mediante oficio 293-SC-2013 del 5 de julio del 2013, siendo que, dicha Dirección informó mediante oficio 5912-DE-2013 que toma nota de lo anterior. "]
[null,"o   ¢2,888 por suma pagada de más por la C.C.S.S en el informe de inspección 1238-00249-2012-I, misma que fue informada a la Dirección Ejecutiva mediante oficio 383-SC-2013 del 4 de septiembre del 2013. Siendo que dicha Dirección mediante oficio 1861-DE/AL-2012 del 16 de setiembre del 2013 informa que se toma de lo informado."]
[null,"o   ¢13,749 la cual obedece al caso de la señora MCSV dado que no corresponde la devolución efectuada por la C.C.S.S., en virtud que la Dirección Ejecutiva mediante oficio 555-DE/CA-2012 del 7 de junio del 2013, remitió resolución 3506-2012 del 7 de junio del 2012 en la cual ordena el archivo definitivo de la deuda por no proceder."]
[null,"o   ¢843,454 corresponde a la devolución de cuotas obrero-patronales según resolución emitida por la C.C.S.S, mediante Informe de Inspección de dicha entidad No. 1238-00079-2015-I del 26 de enero de 2015."]
[null,"o   ¢9.022 corresponde a la devolución de cuotas obrero-patronales según resolución emitida por la C.C.S.S, mediante Informe de Inspección de dicha entidad No. 1238-00274-2015-I del 09 de febrero de 2015."]
[]
[null,"o  El monto de ¢ 37,002, el Subproceso de Ingresos indica mediante correo electrónico del 12/08/2019 que se encuentra en proceso de verificar la naturaleza de los recursos, por lo que se encuentra en estudio"]
[null,"o  El monto de ¢ 8,368 con oficio SARCL-065-01-2019 la CCSS canceló del informe de inspección 1235-00902-2018-I el monto, sin embrago ya había sido cancelado mediante informe de inspección SARCL-0723-2018."]

{"sheet":"Nota 23","index":26,"n_rows":12,"n_cols":6,"rows_kept":12,"cut":false,"hidden":false,"merged":[[3,1,4,5],[5,1,5,5],[8,1,8,5]]}
[]
[null,"Nota 23:"]
[]
[null,"Cotización Seguro De Enfermedad y Maternidad"]
[]
[null,{"$f":"+'Nota 22'!B6:D6","v":"al 31 de Diciembre de 2019"}]
[]
[]
[null,"Este pasivo se conforma por la cuota patronal del 8.75% que el Fondo de Jubilaciones y Pensiones debe pagar mensualmente a la Caja Costarricense de Seguro Social (C.C.S.S.), según lo estipulado en el artículo 62 del Reglamento del Seguro Salud."]
[]
["Cuenta Contable","Entidad",null,"Porcentaje",null,"Monto"]
["234.00.00","Caja Costarricense del Seguro Social",null,8.7499999999999994E-2,null,590541733.49000001]

{"sheet":"Nota 24","index":27,"n_rows":16,"n_cols":10,"rows_kept":16,"cut":false,"hidden":false,"merged":[[2,1,3,9],[4,1,4,9],[20,1,30,9],[6,1,6,9]]}
[]
[null,"Nota 24:"]
[null,"PROVISIONES PARA PENSIONES EN CURSO DE PAGO"]
[]
[null,{"$f":"+'Nota 23'!B6:F6","v":"al 31 de Diciembre de 2019"}]
[]
[null,"En esta cuenta se registra la totalidad de los recursos acumulados  generados de las actividades del Fondo de Jubilaciones y Pensiones provenientes en su mayoría de los aportes recibidos de las cuotas obrero patronales-estatales, así como de los intereses netos ganados en inversiones, con el fin de atender las obligaciones que se deriven de los beneficios establecidos reglamentariamente para los jubilados y pensionados actuales así como de los nuevos jubilados y pensionados. "]
[]
[]
["Cuenta Contable","Nota",null,"Sub-nota",null,"APORTES POR COBRAR",null,"Detalle",null,"Total"]
[]
["241.01.00     ","22.1",null,null,null,"Recursos recibido de reservas en formación",null,null,null,1176971514073.54]
["241.02.00     ","22.2",null,null,null,"(Menos) Pago plan de beneficios",null,null,null,602781666425.55005]
["241.02.00.1.02.03     ",null,null,"22.2.1",null,"Traslados a otros regímenes",null,869721990.70000005]
[]
[{"$nulls":5},"TOTAL ",null,null,null,{"$f":"+J12-J13","v":574189847647.98999}]

{"sheet":"Nota 25","index":28,"n_rows":12,"n_cols":4,"rows_kept":12,"cut":false,"hidden":false,"merged":[[3,1,4,3],[5,1,5,3],[8,1,8,3]]}
[]
[null,"Nota 25:"]
[]
[null,"CUENTAS DE ORDEN DEUDORAS Y ACREDORAS"]
[]
[null,{"$f":"+'Nota 24'!B5:J5","v":"al 31 de Diciembre de 2019"}]
[]
[]
[null,"En esta cuenta se registran los saldos de las cuentas por cobrar por concepto de reconocimiento de tiempo servido en otras dependencias o instituciones públicas, de aquellos servidores en condición de propietarios que renunciaron al Poder Judicial. "]
[]
[null,"Concepto",null,"Monto"]
[null,"Cuentas por cobrar por reconocimiento de tiempo servido en otras dependencias o instituciones públicas, de aquellos servidores en condición de propietarios que renunciaron al Poder Judicial. ",null,329328038.14999998]